{"text_format":"1","workbook":"xlsx","n_sheets":2,"sheets":["Data","Higher"],"not_rendered":{"charts":1,"images":2,"macros":1,"external_links":3,"defined_names":49,"comments":0,"pivot_tables":0},"unopened":[],"bounds":{"document_bytes":16777216,"sheet_cells":100000,"rows_first":2000,"rows_last":500,"rows_between":2000,"halvings":0,"cell_chars":16384,"cell_head_chars":4096},"cells_cut":0,"cells_raw":0,"read":"whole","date_system":"1900"}

{"sheet":"Data","index":0,"n_rows":334,"n_cols":57,"rows_kept":334,"cut":false,"hidden":false,"merged":[[13,15,21,25],[23,17,23,21]]}
["Grades","School Name","Subject","A","A+","B","B+","C","C+","D","E","F","Average","#student"]
["Grade 9 General","Bedaa Al Mutawa","Arabic Language",1,null,3,null,2,null,null,null,null,83.35,6,null,null,null,null,null,null,null,null,null,null,null,null,null,null,null,null,null,null,null,null,null,null,null,null,null,null,null,null,null,null,null,null,null,null,null,null,null,"Grade 1","AP® Biology",null,null,null,"Qatr Al Nada"]
["Grade 9 General","Amra Bint Abdel Rahman","Arabic Language",null,null,3,null,1,null,null,null,null,81.05,4,null,"Arabic Language",null,null,null,null,null,null,null,null,null,null,null,null,null,null,null,null,null,null,null,null,null,null,null,null,null,null,null,null,null,null,null,null,null,null,null,"Grade 10 Advanced","Applied Business Enterprise",null,null,null,"Bayah"]
["Grade 9 General","AL Shabhana","Arabic Language",3,null,6,null,8,null,null,null,1,79.510000000000005,18,null,"Grade 11 Applied",null,null,null,null,null,null,null,null,null,null,null,null,null,null,null,null,null,null,null,null,null,null,null,null,null,null,null,null,null,null,null,null,null,null,null,"Grade 10 Applied","Applied Interactive Multimedia",null,null,null,"Al Nokhbah"]
["Grade 9 General","Al Abbas Bin Abdul Muttalib","Arabic Language",1,null,2,null,4,null,3,null,null,77.989999999999995,10,null,null,null,null,null,null,null,null,null,null,null,null,null,null,null,null,null,null,null,null,null,null,null,null,null,null,null,null,null,null,null,null,null,null,null,null,null,"Grade 10 Applied","Applied Math",null,null,null,"AL Shabhana"]
["Grade 9 General","Bayah","Arabic Language",2,null,7,null,15,null,4,null,null,77.39,28,null,null,null,null,null,null,null,null,null,null,null,null,null,null,null,null,null,null,null,null,null,null,null,null,null,null,null,null,null,null,null,null,null,null,null,null,null,"Grade 10 General","Mathematics",null,null,null,"Al Shomookh"]
["Grade 9 General","Al Shomookh","Arabic Language",2,null,8,null,16,null,2,null,null,77.28,28,null,null,null,null,null,null,null,null,null,null,null,null,null,null,null,null,null,null,null,null,null,null,null,null,null,null,null,null,null,null,null,null,null,null,null,null,null,"Grade 11 Advanced","Applied Science",null,null,null,"Al Ebtekar"]
["Grade 9 General","Al Nokhbah","Arabic Language",2,null,6,null,14,null,1,null,1,77.239999999999995,24,null,"School Nmae","A","A+","B","B+","C","C+","D","E","F","Average",null,null,null,null,null,null,null,null,null,null,null,null,null,null,null,null,null,null,null,null,null,null,null,null,null,"Grade 11 Applied","Applied Travel, Tourism and Leisure",null,null,null,"Al Falah School"]
["Grade 9 General","Al Falah School","Arabic Language",1,null,4,null,11,null,2,null,1,75.709999999999994,19,null,"Bedaa Al Mutawa",21,null,1,null,null,null,null,null,null,96.82,"اكبر متوسط",null,null,null,null,null,null,null,null,null,null,null,null,null,null,null,null,null,null,null,null,null,null,null,null,"Grade 11 General","Arabic Language",null,null,null,"Al Mottahida"]
["Grade 9 General","Khanoor","Arabic Language",null,null,1,null,1,null,1,null,null,75.3,3,null,"Al Huiteen",26,null,5,null,2,null,null,null,null,91.81,null,null,null,null,null,null,null,null,null,null,null,null,null,null,null,null,null,null,null,null,null,null,null,null,null,"Grade 12 Advanced","Biology",null,null,null,"Al Huiteen"]
["Grade 9 General","Dalma","Arabic Language",null,null,2,null,4,null,null,null,1,75.23,7,null,"Dalma",26,null,10,null,3,null,5,2,null,86.23,null,null,null,null,null,null,null,null,null,null,null,null,null,null,null,null,null,null,null,null,null,null,null,null,null,"Grade 12 General","Chemistry",null,null,null,"Al Khamael"]
["Grade 9 General","Qatr Al Nada","Arabic Language",2,null,9,null,15,null,14,null,1,75.17,41,null,null,null,null,null,null,null,null,null,null,null,null,null,null,null,null,null,null,null,null,null,null,null,null,null,null,null,null,null,null,null,null,null,null,null,null,null,"Grade 2","Computer Science",null,null,null,"Al Marfaa"]
["Grade 9 General","Al Hosn Scientific","Arabic Language",1,null,2,null,8,null,2,null,2,73.97,15,null,null,null,null,null,null,null,null,null,null,null,null,null,null,null,null,null,null,null,null,null,null,null,null,null,null,null,null,null,null,null,null,null,null,null,null,null,"Grade 3","Creative Design and Innovation",null,null,null,"Al Nahrawan"]
["Grade 9 General","Al Mottahida","Arabic Language",2,null,6,null,15,null,4,null,5,73.55,32,null,"السلام عليكم ورحمة الله وبركاته\nكيف يمكن الحصول على أسماء المدارس الثلاثة الأولى في الترتيب من الأولى إلى الثالث من حيث المتوسط  بشرط الصف والمادة الموضحين في الخليتين الملونتين بالاصفر والاخضر وعند تغيير المادة او الصف احصل على النتيجة حسب هذا التغيير\nمع الشكر الجزيل",null,null,null,null,null,null,null,null,null,null,null,null,null,null,null,null,null,null,null,null,null,null,null,null,null,null,null,null,null,null,null,null,null,null,null,"Grade 3","Design and Technology",null,null,null,"Al Sela"]
["Grade 9 General","Al Farooq","Arabic Language",null,null,null,null,3,null,null,null,null,73.13,3,null,null,null,null,null,null,null,null,null,null,null,null,null,null,null,null,null,null,null,null,null,null,null,null,null,null,null,null,null,null,null,null,null,null,null,null,null,"Grade 4","English Language",null,null,null,"Bayaat Al Redhwan"]
["Grade 9 General","Al Ebtekar","Arabic Language",2,null,4,null,10,null,7,null,3,72.55,26,null,null,null,null,null,null,null,null,null,null,null,null,null,null,null,null,null,null,null,null,null,null,null,null,null,null,null,null,null,null,null,null,null,null,null,null,null,"Grade 5","Integrated Science",null,null,null,"Bedaa Al Mutawa"]
["Grade 9 General","Al Huiteen","Arabic Language",null,null,null,null,1,null,null,null,null,71.400000000000006,1,null,null,null,null,null,null,null,null,null,null,null,null,null,null,null,null,null,null,null,null,null,null,null,null,null,null,null,null,null,null,null,null,null,null,null,null,null,"Grade 5 Elite","Islamic Education",null,null,null,"Dalma"]
["Grade 9 General","Al Seddique","Arabic Language",null,null,2,null,null,null,null,null,1,69.790000000000006,3,null,null,null,null,null,null,null,null,null,null,null,null,null,null,null,null,null,null,null,null,null,null,null,null,null,null,null,null,null,null,null,null,null,null,null,null,null,"Grade 6","Physics",null,null,null,"Khanoor"]
["Grade 9 Elite","Qatr Al Nada","Arabic Language",1,4,null,4,null,2,null,null,null,80.900000000000006,11,null,null,null,null,null,null,null,null,null,null,null,null,null,null,null,null,null,null,null,null,null,null,null,null,null,null,null,null,null,null,null,null,null,null,null,null,null,"Grade 7","Science",null,null,null,"Zayed Al Khair"]
["Grade 9 Applied","Al Shomookh","Arabic Language",2,null,3,null,7,null,3,null,null,77.92,15,null,null,null,null,null,null,null,null,null,null,null,null,null,null,null,null,null,null,null,null,null,null,null,null,null,null,null,null,null,null,null,null,null,null,null,null,null,"Grade 7 Elite","Social Studies",null,null,null,"Al Abbas Bin Abdul Muttalib"]
["Grade 9 Applied","Al Nokhbah","Arabic Language",null,null,2,null,7,null,7,null,2,69.650000000000006,18,null,null,null,null,null,null,null,null,null,null,null,null,null,null,null,null,null,null,null,null,null,null,null,null,null,null,null,null,null,null,null,null,null,null,null,null,null,"Grade 8",null,null,null,null,"Al Farooq"]
["Grade 9 Applied","Al Falah School","Arabic Language",null,null,1,null,6,null,8,null,2,69.459999999999994,17,null,null,null,null,null,null,null,null,null,null,null,null,null,null,null,null,null,null,null,null,null,null,null,null,null,null,null,null,null,null,null,null,null,null,null,null,null,"Grade 8 Elite",null,null,null,null,"Al Hosn Scientific"]
["Grade 9 Applied","Al Ebtekar","Arabic Language",null,null,null,null,4,null,7,null,1,68.09,12,null,null,null,null,null,null,null,null,null,null,null,null,null,null,null,null,null,null,null,null,null,null,null,null,null,null,null,null,null,null,null,null,null,null,null,null,null,"Grade 9 Advanced",null,null,null,null,"Al Seddique"]
["Grade 9 Advanced","AL Shabhana","Arabic Language",7,null,4,5,null,null,null,null,null,87.22,16,null,null,null,"مثال",null,null,null,null,null,null,null,null,null,null,null,null,null,null,null,null,null,null,null,null,null,null,null,null,null,null,null,null,null,null,null,null,null,"Grade 9 Applied",null,null,null,null,"Amra Bint Abdel Rahman"]
["Grade 9 Advanced","Al Farooq","Arabic Language",3,null,1,3,null,1,null,null,null,84.22,8,null,null,null,null,null,null,null,null,null,null,null,null,null,null,null,null,null,null,null,null,null,null,null,null,null,null,null,null,null,null,null,null,null,null,null,null,null,"Grade 9 Elite",null,null,null,null,"Al Dhafra"]
["Grade 9 Advanced","Al Huiteen","Arabic Language",5,null,5,6,null,1,null,null,null,82.29,17,null,"Arabic Language",null,null,null,null,null,null,null,null,null,null,null,null,null,null,null,null,null,null,null,null,null,null,null,null,null,null,null,null,null,null,null,null,null,null,null,"Grade 9 General",null,null,null,null,"Baynouna"]
["Grade 9 Advanced","Al Falah School","Arabic Language",6,null,9,9,null,1,null,null,1,81.77,26,null,"Grade 1",null,null,null,null,null,null,null,null,null,null,null,null,null,null,null,null,null,null,null,null,null,null,null,null,null,null,null,null,null,null,null,null,null,null,null,"Grade11 Advanced"]
["Grade 9 Advanced","Amra Bint Abdel Rahman","Arabic Language",5,null,10,5,null,2,null,null,null,81.13,22,null,null,"average"]
["Grade 9 Advanced","Al Nokhbah","Arabic Language",2,null,10,13,null,3,null,null,null,80.13,28,null,"Bedaa Al Mutawa",96.82,"الأولى"]
["Grade 9 Advanced","Khanoor","Arabic Language",null,null,3,4,null,null,null,null,null,80.11,7,null,"Al Huiteen",91.81,"الثانية"]
["Grade 9 Advanced","Qatr Al Nada","Arabic Language",5,null,9,14,null,3,null,null,2,80.06,33,null,"Dalma",86.23,"الثالثة"]
["Grade 9 Advanced","Al Ebtekar","Arabic Language",4,null,8,2,null,1,null,null,null,79.19,15,null,"Al Nahrawan",85.74]
["Grade 9 Advanced","Bayah","Arabic Language",2,null,7,5,null,1,null,null,1,78.5,16,null,"Al Sela",85.63]
["Grade 9 Advanced","Dalma","Arabic Language",2,null,8,4,null,3,null,null,null,77.95,17,null,"Khanoor",80.31]
["Grade 9 Advanced","Al Mottahida","Arabic Language",1,null,7,7,null,4,null,null,1,77.319999999999993,20,null,"Bayaat Al Redhwan",80.290000000000006]
["Grade 9 Advanced","Bedaa Al Mutawa","Arabic Language",1,null,2,2,null,1,null,null,null,76.95,6,null,"Al Khamael",80.150000000000006]
["Grade 9 Advanced","Al Abbas Bin Abdul Muttalib","Arabic Language",2,null,8,6,null,4,null,null,1,76.44,21,null,"Al Marfaa",80.06]
["Grade 9 Advanced","Al Hosn Scientific","Arabic Language",1,null,2,1,null,2,null,null,null,76.2,6,null,"Zayed Al Khair",74.86]
["Grade 9 Advanced","Al Shomookh","Arabic Language",4,null,21,6,null,9,null,null,3,75.349999999999994,43]
["Grade 9 Advanced","Al Seddique","Arabic Language",null,null,9,3,null,1,null,null,1,74.52,14,null,null,"A","A+","B","B+","C","C+","D","E","F","Average"]
["Grade 9 Advanced","AL Shabhana","Biology",8,null,3,4,null,1,null,null,null,88.98,16,null,"Bedaa Al Mutawa",21,null,1,null,null,null,null,null,null,96.82]
["Grade 9 Advanced","Al Farooq","Biology",4,null,2,2,null,null,null,null,null,88.01,8,null,"Al Huiteen",26,null,5,null,2,null,null,null,null,91.81]
["Grade 9 Advanced","Al Huiteen","Biology",10,null,1,3,null,3,null,null,null,85.59,17,null,"Dalma",26,null,10,null,3,null,5,2,null,86.23]
["Grade 9 Advanced","Al Falah School","Biology",13,null,5,6,null,1,null,null,1,85.3,26]
["Grade 9 Advanced","Qatr Al Nada","Biology",11,null,3,14,null,4,null,null,1,83.67,33]
["Grade 9 Advanced","Amra Bint Abdel Rahman","Biology",7,null,5,6,null,4,null,null,null,83.35,22]
["Grade 9 Advanced","Al Nokhbah","Biology",8,null,4,13,null,2,null,null,1,82.06,28]
["Grade 9 Advanced","Al Abbas Bin Abdul Muttalib","Biology",6,null,5,5,null,4,null,null,1,79.88,21]
["Grade 9 Advanced","Bayah","Biology",5,null,4,4,null,null,null,null,3,79.31,16]
["Grade 9 Advanced","Al Mottahida","Biology",8,null,2,4,null,4,null,null,2,78.69,20]
["Grade 9 Advanced","Al Seddique","Biology",5,null,2,1,null,5,null,null,1,77.760000000000005,14]
["Grade 9 Advanced","Khanoor","Biology",2,null,3,null,null,2,null,null,null,77.73,7]
["Grade 9 Advanced","Bedaa Al Mutawa","Biology",2,null,null,3,null,null,null,null,1,76.75,6]
["Grade 9 Advanced","Dalma","Biology",3,null,6,3,null,4,null,null,1,76.63,17]
["Grade 9 Advanced","Al Ebtekar","Biology",1,null,7,4,null,2,null,null,1,75.38,15]
["Grade 9 Advanced","Al Shomookh","Biology",7,null,17,4,null,14,null,null,1,75.02,43]
["Grade 9 Advanced","Al Hosn Scientific","Biology",1,null,1,2,null,1,null,null,1,74.680000000000007,6]
["Grade 8 Elite","Qatr Al Nada","Arabic Language",4,3,null,4,null,10,null,null,null,75.959999999999994,21]
["Grade 8","Bedaa Al Mutawa","Arabic Language",5,null,4,null,4,null,null,2,null,82.25,15]
["Grade 8","Al Hosn Scientific","Arabic Language",10,null,10,null,6,null,2,1,2,81.52,31]
["Grade 8","Al Huiteen","Arabic Language",4,null,4,null,8,null,3,null,null,80.66,19]
["Grade 8","Al Abbas Bin Abdul Muttalib","Arabic Language",6,null,12,null,4,null,1,3,null,79.900000000000006,26]
["Grade 8","Amra Bint Abdel Rahman","Arabic Language",7,null,11,null,3,null,3,null,3,79.12,27]
["Grade 8","Khanoor","Arabic Language",4,null,9,null,4,null,2,1,1,78.48,21]
["Grade 8","Dalma","Arabic Language",6,null,6,null,5,null,4,1,3,76.260000000000005,25]
["Grade 8","Bayah","Arabic Language",11,null,24,null,15,null,10,9,7,73.599999999999994,76]
["Grade 8","Al Dhafra","Arabic Language",8,null,15,null,17,null,18,4,5,72.56,67]
["Grade 8","Al Farooq","Arabic Language",null,null,5,null,5,null,1,3,null,72.56,14]
["Grade 8","Al Shomookh","Arabic Language",4,null,15,null,23,null,6,7,5,72.52,60]
["Grade 8","Al Mottahida","Arabic Language",13,null,12,null,12,null,8,15,10,72.48,70]
["Grade 8","AL Shabhana","Arabic Language",19,null,16,null,25,null,15,7,14,71.569999999999993,96]
["Grade 8","Baynouna","Arabic Language",9,null,19,null,9,null,8,9,9,71.48,63]
["Grade 8","Qatr Al Nada","Arabic Language",11,null,17,null,20,null,16,13,17,68.39,94]
["Grade 8","Al Nokhbah","Arabic Language",1,null,8,null,17,null,16,10,8,66.459999999999994,60]
["Grade 8","Al Seddique","Arabic Language",1,null,1,null,4,null,11,2,6,62.2,25]
["Grade 7 Elite","Qatr Al Nada","Arabic Language",9,2,null,null,null,2,null,null,null,83.97,13]
["Grade 7","Bedaa Al Mutawa","Arabic Language",7,null,10,null,3,null,null,1,null,84.56,17]
["Grade 7","Al Seddique","Arabic Language",5,null,8,null,3,null,null,null,1,83.64,61]
["Grade 7","Al Hosn Scientific","Arabic Language",7,null,12,null,3,null,2,2,null,82.18,16]
["Grade 7","Amra Bint Abdel Rahman","Arabic Language",14,null,8,null,7,null,null,1,3,82.11,26]
["Grade 7","Al Abbas Bin Abdul Muttalib","Arabic Language",6,null,5,null,3,null,2,1,null,81.430000000000007,20]
["Grade 7","Khanoor","Arabic Language",5,null,1,null,3,null,2,1,null,81.349999999999994,64]
["Grade 7","Al Huiteen","Arabic Language",6,null,7,null,2,null,3,1,1,80.09,56]
["Grade 7","Al Shomookh","Arabic Language",15,null,14,null,10,null,12,4,null,79.3,17]
["Grade 7","Al Farooq","Arabic Language",4,null,5,null,2,null,3,2,null,79.19,63]
["Grade 7","Baynouna","Arabic Language",12,null,16,null,12,null,3,6,1,78.67,55]
["Grade 7","Al Mottahida","Arabic Language",15,null,18,null,13,null,7,6,5,78.27,33]
["Grade 7","Al Nokhbah","Arabic Language",14,null,18,null,8,null,7,9,null,78.12,59]
["Grade 7","Al Dhafra","Arabic Language",12,null,19,null,12,null,10,4,4,77.209999999999994,50]
["Grade 7","Bayah","Arabic Language",12,null,23,null,7,null,7,4,6,76.5,21]
["Grade 7","AL Shabhana","Arabic Language",19,null,16,null,9,null,5,6,8,75.099999999999994,19]
["Grade 7","Dalma","Arabic Language",8,null,2,null,2,null,3,null,4,75.08,12]
["Grade 7","Qatr Al Nada","Arabic Language",17,null,16,null,15,null,10,13,11,72.069999999999993,82]
["Grade 6","Bedaa Al Mutawa","Arabic Language",5,null,7,null,2,null,null,null,null,87.34,14]
["Grade 6","Amra Bint Abdel Rahman","Arabic Language",8,null,9,null,3,null,3,null,null,85.59,23]
["Grade 6","Al Farooq","Arabic Language",8,null,7,null,6,null,null,null,null,85.06,21]
["Grade 6","Al Mottahida","Arabic Language",13,null,29,null,17,null,8,7,2,83.91,76]
["Grade 6","Al Huiteen","Arabic Language",7,null,5,null,2,null,1,3,null,81.93,18]
["Grade 6","Al Abbas Bin Abdul Muttalib","Arabic Language",8,null,2,null,6,null,2,null,1,81.23,19]
["Grade 6","Bayah","Arabic Language",11,null,25,null,9,null,2,7,2,79.2,56]
["Grade 6","Dalma","Arabic Language",4,null,6,null,6,null,null,1,1,79.08,18]
["Grade 6","Khanoor","Arabic Language",5,null,3,null,5,null,1,null,2,78.97,16]
["Grade 6","Al Shomookh","Arabic Language",11,null,9,null,16,null,5,2,2,78.64,45]
["Grade 6","Baynouna","Arabic Language",9,null,11,null,12,null,7,2,3,77.680000000000007,44]
["Grade 6","AL Shabhana","Arabic Language",19,null,26,null,12,null,6,6,10,77.62,79]
["Grade 6","Al Hosn Scientific","Arabic Language",1,null,11,null,4,null,null,null,2,76.930000000000007,18]
["Grade 6","Al Dhafra","Arabic Language",16,null,15,null,11,null,7,6,6,76.25,61]
["Grade 6","Al Nokhbah","Arabic Language",6,null,22,null,12,null,9,2,4,75.760000000000005,55]
["Grade 6","Qatr Al Nada","Arabic Language",21,null,33,null,15,null,9,5,12,75.739999999999995,95]
["Grade 6","Al Seddique","Arabic Language",7,null,6,null,2,null,1,3,4,74.72,23]
["Grade 5 Elite","Qatr Al Nada","Arabic Language",8,1,null,4,null,1,null,null,null,82.34,14]
["Grade 5","Al Farooq","Arabic Language",7,null,5,null,1,null,3,null,null,86.63,16]
["Grade 5","Al Hosn Scientific","Arabic Language",7,null,6,null,4,null,1,null,null,85.6,18]
["Grade 5","Al Abbas Bin Abdul Muttalib","Arabic Language",5,null,null,null,1,null,null,null,1,84.38,7]
["Grade 5","Al Mottahida","Arabic Language",18,null,26,null,13,null,8,3,3,83.87,71]
["Grade 5","Amra Bint Abdel Rahman","Arabic Language",7,null,5,null,5,null,2,null,1,83.86,20]
["Grade 5","Dalma","Arabic Language",5,null,8,null,3,null,null,null,1,82.3,17]
["Grade 5","Al Shomookh","Arabic Language",14,null,16,null,13,null,3,4,null,81.13,50]
["Grade 5","Al Nokhbah","Arabic Language",13,null,24,null,14,null,5,5,null,81.09,61]
["Grade 5","Baynouna","Arabic Language",15,null,26,null,9,null,5,4,2,80.650000000000006,61]
["Grade 5","Al Huiteen","Arabic Language",6,null,5,null,5,null,2,1,1,80.12,20]
["Grade 5","AL Shabhana","Arabic Language",13,null,26,null,17,null,3,1,3,80.040000000000006,63]
["Grade 5","Bedaa Al Mutawa","Arabic Language",4,null,2,null,2,null,3,null,null,79.959999999999994,11]
["Grade 5","Khanoor","Arabic Language",3,null,5,null,2,null,null,1,1,79.56,12]
["Grade 5","Al Seddique","Arabic Language",3,null,7,null,8,null,1,1,null,78.540000000000006,20]
["Grade 5","Qatr Al Nada","Arabic Language",10,null,36,null,13,null,6,6,6,78,77]
["Grade 5","Bayah","Arabic Language",11,null,13,null,10,null,6,2,3,77.8,45]
["Grade 5","Al Dhafra","Arabic Language",13,null,21,null,13,null,9,6,7,74.72,69]
["Grade 4","Al Farooq","Arabic Language",18,null,4,null,2,null,null,null,null,92.5,24]
["Grade 4","Bedaa Al Mutawa","Arabic Language",17,null,5,null,null,null,null,null,null,91.63,22]
["Grade 4","Khanoor","Arabic Language",12,null,5,null,1,null,null,null,null,90.98,18]
["Grade 4","Al Huiteen","Arabic Language",12,null,9,null,1,null,null,null,null,89.92,22]
["Grade 4","Dalma","Arabic Language",25,null,16,null,7,null,1,2,null,87.41,51]
["Grade 4","Al Nahrawan","Arabic Language",17,null,10,null,4,null,2,2,null,85.74,35]
["Grade 4","Zayed Al Khair","Arabic Language",21,null,21,null,8,null,4,null,null,85.47,54]
["Grade 4","Bayaat Al Redhwan","Arabic Language",49,null,52,null,18,null,3,2,2,85.34,126]
["Grade 4","Al Sela","Arabic Language",56,null,47,null,33,null,14,3,2,83.49,155]
["Grade 4","Al Seddique","Arabic Language",4,null,3,null,2,null,2,null,null,83.33,11]
["Grade 4","Al Khamael","Arabic Language",41,null,30,null,20,null,11,7,3,82.29,112]
["Grade 4","Al Marfaa","Arabic Language",30,null,53,null,29,null,12,1,1,82.1,126]
["Grade 3","Al Huiteen","Arabic Language",36,null,4,null,4,null,null,null,null,93.87,44]
["Grade 3","Bedaa Al Mutawa","Arabic Language",18,null,2,null,null,null,null,null,null,93.15,20]
["Grade 3","Dalma","Arabic Language",23,null,13,null,7,null,1,null,null,88,44]
["Grade 3","Khanoor","Arabic Language",18,null,8,null,8,null,null,null,null,87.23,34]
["Grade 3","Al Marfaa","Arabic Language",47,null,29,null,18,null,null,1,null,86.37,95]
["Grade 3","Al Khamael","Arabic Language",50,null,33,null,43,null,null,null,null,85.16,126]
["Grade 3","Al Sela","Arabic Language",78,null,35,null,20,null,21,null,null,84.81,154]
["Grade 3","Al Nahrawan","Arabic Language",11,null,5,null,7,null,2,null,null,84.48,25]
["Grade 3","Bayaat Al Redhwan","Arabic Language",32,null,34,null,25,null,13,null,null,82.36,104]
["Grade 3","Zayed Al Khair","Arabic Language",16,null,17,null,15,null,6,7,null,80.59,61]
["Grade 2","Al Huiteen","Arabic Language",18,null,5,null,2,null,null,null,null,93.4,25]
["Grade 2","Bedaa Al Mutawa","Arabic Language",18,null,9,null,null,null,null,null,null,92.7,27]
["Grade 2","Dalma","Arabic Language",27,null,10,null,4,null,9,null,null,87.57,50]
["Grade 2","Al Nahrawan","Arabic Language",7,null,6,null,3,null,1,null,null,86.12,17]
["Grade 2","Khanoor","Arabic Language",18,null,10,null,4,null,4,null,null,85.56,36]
["Grade 2","Al Sela","Arabic Language",78,null,43,null,21,null,8,16,1,83.56,167]
["Grade 2","Al Marfaa","Arabic Language",39,null,27,null,27,null,17,2,null,80.39,112]
["Grade 2","Bayaat Al Redhwan","Arabic Language",23,null,49,null,32,null,10,4,null,79.8,118]
["Grade 2","Zayed Al Khair","Arabic Language",17,null,26,null,17,null,4,7,null,79.63,71]
["Grade 2","Al Khamael","Arabic Language",73,null,23,null,12,null,10,15,2,79.31,135]
["Grade 12 General","Khanoor","Arabic Language",1,null,1,null,6,null,null,null,null,78.03,8]
["Grade 12 General","Al Shomookh","Arabic Language",1,null,18,null,18,null,4,null,null,77.900000000000006,41]
["Grade 12 General","Bedaa Al Mutawa","Arabic Language",null,null,5,null,4,null,1,null,2,76.45,12]
["Grade 12 General","Qatr Al Nada","Arabic Language",1,null,6,null,27,null,8,null,6,73.66,48]
["Grade 12 General","Al Hosn Scientific","Arabic Language",null,null,2,null,11,null,3,null,1,73.59,17]
["Grade 12 General","Dalma","Arabic Language",null,null,null,null,6,null,2,null,null,73.06,8]
["Grade 12 General","Al Farooq","Arabic Language",null,null,null,null,5,null,3,null,null,70.86,8]
["Grade 12 General","Al Huiteen","Arabic Language",null,null,null,null,3,null,6,null,null,70.75,9]
["Grade 12 General","Al Mottahida","Arabic Language",null,null,2,null,25,null,13,null,5,70.430000000000007,45]
["Grade 12 General","Al Abbas Bin Abdul Muttalib","Arabic Language",null,null,1,null,8,null,4,null,2,70.09,15]
["Grade 12 General","Al Nokhbah","Arabic Language",null,null,7,null,28,null,25,null,6,69.790000000000006,66]
["Grade 12 General","Amra Bint Abdel Rahman","Arabic Language",null,null,null,null,3,null,3,null,null,69.459999999999994,6]
["Grade 12 General","Al Falah School","Arabic Language",null,null,null,null,18,null,10,null,5,68.5,33]
["Grade 12 General","AL Shabhana","Arabic Language",null,null,2,null,13,null,13,null,6,68.180000000000007,34]
["Grade 12 General","Bayah","Arabic Language",null,null,2,null,13,null,12,null,8,67.02,35]
["Grade 12 General","Al Ebtekar","Arabic Language",1,null,null,null,14,null,15,null,18,65.83,48]
["Grade 12 General","Al Seddique","Arabic Language",null,null,null,null,null,null,2,null,1,58.57,3]
["Grade 12 General","Dalma","Biology",null,null,null,null,1,null,null,null,null,77.58,1]
["Grade 12 General","Qatr Al Nada","Biology",null,null,7,null,16,null,7,null,1,77.069999999999993,31]
["Grade 12 General","Al Falah School","Biology",null,null,7,null,20,null,4,null,1,75.06,32]
["Grade 12 General","Al Farooq","Biology",null,null,null,null,1,null,null,null,null,73.849999999999994,1]
["Grade 12 General","Al Shomookh","Biology",2,null,2,null,21,null,16,null,null,72.16,41]
["Grade 12 General","Al Seddique","Biology",null,null,null,null,2,null,1,null,null,70.19,3]
["Grade 12 General","Al Huiteen","Biology",null,null,null,null,3,null,6,null,null,69.03,9]
["Grade 12 General","Al Nokhbah","Biology",2,null,5,null,22,null,47,null,18,67.739999999999995,94]
["Grade 12 General","Al Abbas Bin Abdul Muttalib","Biology",null,null,null,null,3,null,5,null,1,66.709999999999994,9]
["Grade 12 General","AL Shabhana","Biology",null,null,1,null,11,null,10,null,8,66.680000000000007,30]
["Grade 12 General","Bayah","Biology",1,null,3,null,7,null,18,null,6,66.400000000000006,35]
["Grade 12 General","Al Ebtekar","Biology",1,null,1,null,8,null,27,null,11,66.3,48]
["Grade 12 General","Amra Bint Abdel Rahman","Biology",null,null,null,null,null,null,1,null,1,64.010000000000005,2]
["Grade 12 General","Bedaa Al Mutawa","Biology",null,null,null,null,null,null,1,null,1,57.84,2]
["Grade 12 Advanced","Bedaa Al Mutawa","Arabic Language",3,null,null,2,null,null,null,null,null,91.25,5]
["Grade 12 Advanced","Qatr Al Nada","Arabic Language",17,null,3,18,null,1,null,null,null,87.37,39]
["Grade 12 Advanced","Khanoor","Arabic Language",3,null,null,2,null,1,null,null,null,86.35,6]
["Grade 12 Advanced","Al Seddique","Arabic Language",1,null,null,4,null,null,null,null,null,86.16,5]
["Grade 12 Advanced","Bayah","Arabic Language",3,null,1,4,null,null,null,null,1,85.29,9]
["Grade 12 Advanced","Al Abbas Bin Abdul Muttalib","Arabic Language",null,null,6,21,null,null,null,null,null,83.98,27]
["Grade 12 Advanced","Al Shomookh","Arabic Language",6,null,2,14,null,3,null,null,null,83.43,25]
["Grade 12 Advanced","Al Huiteen","Arabic Language",1,null,2,6,null,null,null,null,null,83.16,9]
["Grade 12 Advanced","Al Nokhbah","Arabic Language",4,null,6,11,null,1,null,null,null,82.64,22]
["Grade 12 Advanced","AL Shabhana","Arabic Language",2,null,6,9,null,null,null,null,null,82.54,17]
["Grade 12 Advanced","Al Falah School","Arabic Language",1,null,7,20,null,1,null,null,1,80.89,30]
["Grade 12 Advanced","Al Mottahida","Arabic Language",2,null,8,8,null,2,null,null,null,80.3,20]
["Grade 12 Advanced","Amra Bint Abdel Rahman","Arabic Language",1,null,2,10,null,3,null,null,null,79.95,16]
["Grade 12 Advanced","Al Hosn Scientific","Arabic Language",null,null,4,9,null,2,null,null,null,79.209999999999994,15]
["Grade 12 Advanced","Dalma","Arabic Language",1,null,7,1,null,null,null,null,null,78.2,9]
["Grade 12 Advanced","Al Ebtekar","Arabic Language",null,null,7,5,null,3,null,null,1,74.83,16]
["Grade 12 Advanced","Al Farooq","Arabic Language",null,null,1,2,null,1,null,null,1,70.69,5]
["Grade 11 General","Bedaa Al Mutawa","Arabic Language",2,null,4,null,2,null,null,null,1,83.55,9]
["Grade 11 General","AL Shabhana","Arabic Language",9,null,4,null,9,null,3,null,1,81.55,26]
["Grade 11 General","Bayah","Arabic Language",4,null,4,null,5,null,4,null,null,80.790000000000006,17]
["Grade 11 General","Al Hosn Scientific","Arabic Language",2,null,2,null,7,null,null,null,null,80.7,11]
["Grade 11 General","Khanoor","Arabic Language",2,null,2,null,4,null,1,null,null,80.02,9]
["Grade 11 General","Al Shomookh","Arabic Language",8,null,12,null,12,null,3,null,2,79.17,37]
["Grade 11 General","Amra Bint Abdel Rahman","Arabic Language",2,null,2,null,8,null,null,null,2,76.42,14]
["Grade 11 General","Al Farooq","Arabic Language",1,null,1,null,2,null,1,null,1,74.52,6]
["Grade 11 General","Al Nokhbah","Arabic Language",2,null,8,null,25,null,14,null,3,73.94,52]
["Grade 11 General","Qatr Al Nada","Arabic Language",null,null,2,null,20,null,11,null,1,73.239999999999995,34]
["Grade 11 General","Al Seddique","Arabic Language",null,null,null,null,3,null,1,null,null,72.28,4]
["Grade 11 General","Al Falah School","Arabic Language",1,null,3,null,6,null,8,null,1,71.97,19]
["Grade 11 General","Al Mottahida","Arabic Language",1,null,5,null,16,null,13,null,2,71.680000000000007,37]
["Grade 11 General","Al Ebtekar","Arabic Language",3,null,2,null,12,null,15,null,7,70.75,39]
["Grade 11 General","Dalma","Arabic Language",null,null,null,null,6,null,5,null,1,69.2,12]
["Grade 11 General","Al Abbas Bin Abdul Muttalib","Arabic Language",null,null,1,null,2,null,2,null,2,69.180000000000007,7]
["Grade 11 General","Al Huiteen","Arabic Language",null,null,null,null,3,null,3,null,1,68.349999999999994,7]
["Grade 11 Applied","Al Shomookh","Arabic Language",1,null,10,null,8,null,null,null,null,81.010000000000005,19]
["Grade 11 Applied","Qatr Al Nada","Arabic Language",null,null,8,null,10,null,2,null,null,77.3,20]
["Grade 11 Applied","AL Shabhana","Arabic Language",3,null,3,null,10,null,4,null,2,75.09,22]
["Grade 11 Applied","Bayah","Arabic Language",4,null,3,null,14,null,12,null,1,72.760000000000005,34]
["Grade 11 Applied","Al Nokhbah","Arabic Language",1,null,3,null,2,null,5,null,2,72.319999999999993,13]
["Grade 11 Applied","Al Mottahida","Arabic Language",null,null,3,null,7,null,5,null,2,71.87,17]
["Grade 11 Applied","Al Falah School","Arabic Language",null,null,6,null,8,null,4,null,6,70.62,24]
["Grade 11 Applied","Al Ebtekar","Arabic Language",null,null,1,null,4,null,4,null,2,69.790000000000006,11]
["Grade 11 Advanced","Al Hosn Scientific","Arabic Language",null,null,null,7,null,null,null,null,null,85.1,7]
["Grade 11 Advanced","Bayah","Arabic Language",3,null,2,11,null,null,null,null,1,84.78,17]
["Grade 11 Advanced","Al Shomookh","Arabic Language",3,null,6,20,null,null,null,null,null,84.03,29]
["Grade 11 Advanced","Khanoor","Arabic Language",1,null,1,4,null,null,null,null,null,83.81,6]
["Grade 11 Advanced","AL Shabhana","Arabic Language",3,null,3,9,null,2,null,null,null,83.42,17]
["Grade 11 Advanced","Bedaa Al Mutawa","Arabic Language",1,null,1,4,null,null,null,null,null,83.23,6]
["Grade 11 Advanced","Al Falah School","Arabic Language",1,null,15,28,null,null,null,null,null,82.16,44]
["Grade 11 Advanced","Al Abbas Bin Abdul Muttalib","Arabic Language",6,null,9,8,null,null,null,null,null,82.12,23]
["Grade 11 Advanced","Amra Bint Abdel Rahman","Arabic Language",2,null,8,20,null,null,null,null,null,81.84,30]
["Grade 11 Advanced","Dalma","Arabic Language",null,null,4,7,null,null,null,null,null,81.52,11]
["Grade 11 Advanced","Al Ebtekar","Arabic Language",null,null,5,12,null,1,null,null,null,81.31,18]
["Grade 11 Advanced","Al Farooq","Arabic Language",null,null,2,6,null,null,null,null,null,80.739999999999995,8]
["Grade 11 Advanced","Qatr Al Nada","Arabic Language",5,null,19,18,null,4,null,null,null,80.37,46]
["Grade 11 Advanced","Al Huiteen","Arabic Language",null,null,2,4,null,1,null,null,null,80.25,7]
["Grade 11 Advanced","Al Nokhbah","Arabic Language",1,null,9,5,null,null,null,null,null,79.19,15]
["Grade 11 Advanced","Al Seddique","Arabic Language",null,null,3,7,null,1,null,null,null,78.62,11]
["Grade 11 Advanced","Al Mottahida","Arabic Language",3,null,4,6,null,3,null,null,2,77.37,18]
["Grade 11 Advanced","Al Shomookh","Biology",28,null,null,1,null,null,null,null,null,94.65,29]
["Grade 11 Advanced","Al Hosn Scientific","Biology",7,null,null,null,null,null,null,null,null,93.33,7]
["Grade 11 Advanced","Al Nokhbah","Biology",12,null,null,3,null,null,null,null,null,93.11,15]
["Grade 11 Advanced","Dalma","Biology",9,null,null,2,null,null,null,null,null,92.8,11]
["Grade 11 Advanced","Amra Bint Abdel Rahman","Biology",24,null,null,6,null,null,null,null,null,91.53,30]
["Grade 11 Advanced","Qatr Al Nada","Biology",32,null,3,11,null,null,null,null,null,91.42,46]
["Grade 11 Advanced","Al Falah School","Biology",32,null,null,12,null,null,null,null,null,91.37,44]
["Grade 11 Advanced","AL Shabhana","Biology",10,null,1,6,null,null,null,null,null,91.15,17]
["Grade 11 Advanced","Bayah","Biology",10,null,null,7,null,null,null,null,null,91.03,17]
["Grade 11 Advanced","Al Farooq","Biology",4,null,1,3,null,null,null,null,null,90.51,8]
["Grade 11 Advanced","Al Seddique","Biology",6,null,null,4,null,1,null,null,null,90.31,11]
["Grade 11 Advanced","Al Abbas Bin Abdul Muttalib","Biology",14,null,1,7,null,1,null,null,null,89.36,23]
["Grade 11 Advanced","Khanoor","Biology",2,null,null,4,null,null,null,null,null,86.81,6]
["Grade 11 Advanced","Al Huiteen","Biology",2,null,2,3,null,null,null,null,null,85.14,7]
["Grade 11 Advanced","Al Mottahida","Biology",10,null,1,4,null,2,null,null,1,84.52,18]
["Grade 11 Advanced","Al Ebtekar","Biology",2,null,null,15,null,null,null,null,1,83.52,18]
["Grade 11 Advanced","Bedaa Al Mutawa","Biology",3,null,1,1,null,1,null,null,null,79.53,6]
["Grade 10 General","Bayah","Arabic Language",8,null,7,null,4,null,null,null,null,86.34,9]
["Grade 10 General","Bedaa Al Mutawa","Arabic Language",2,null,2,null,1,null,3,null,null,85.66,19]
["Grade 10 General","Amra Bint Abdel Rahman","Arabic Language",2,null,2,null,2,null,1,null,1,80.069999999999993,24]
["Grade 10 General","Dalma","Arabic Language",2,null,3,null,7,null,3,null,null,79.03,8]
["Grade 10 General","AL Shabhana","Arabic Language",4,null,7,null,6,null,3,null,2,77.8,11]
["Grade 10 General","Al Abbas Bin Abdul Muttalib","Arabic Language",null,null,4,null,4,null,1,null,null,77.38,4]
["Grade 10 General","Al Shomookh","Arabic Language",2,null,12,null,17,null,8,null,null,76.87,55]
["Grade 10 General","Qatr Al Nada","Arabic Language",6,null,10,null,29,null,8,null,3,76.290000000000006,51]
["Grade 10 General","Al Hosn Scientific","Arabic Language",2,null,3,null,2,null,1,null,3,75.88,6]
["Grade 10 General","Al Farooq","Arabic Language",null,null,2,null,5,null,null,null,1,75.180000000000007,22]
["Grade 10 General","Al Nokhbah","Arabic Language",2,null,9,null,27,null,13,null,null,74.66,39]
["Grade 10 General","Al Mottahida","Arabic Language",3,null,9,null,31,null,9,null,3,74.260000000000005,8]
["Grade 10 General","Al Seddique","Arabic Language",null,null,1,null,2,null,3,null,null,73.650000000000006,19]
["Grade 10 General","Al Ebtekar","Arabic Language",1,null,3,null,9,null,3,null,3,72.260000000000005,8]
["Grade 10 General","Al Falah School","Arabic Language",1,null,3,null,11,null,4,null,5,71.17,15]
["Grade 10 General","Khanoor","Arabic Language",null,null,null,null,2,null,1,null,null,71.08,3]
["Grade 10 General","Al Huiteen","Arabic Language",null,null,null,null,1,null,2,null,1,59.97,56]
["Grade 10 General","Bayah","Biology",12,null,5,null,null,null,2,null,null,89.28,19]
["Grade 10 General","Bedaa Al Mutawa","Biology",2,null,3,null,1,null,1,null,1,87.69,8]
["Grade 10 General","AL Shabhana","Biology",10,null,4,null,3,null,3,null,2,81.05,22]
["Grade 10 General","Amra Bint Abdel Rahman","Biology",1,null,4,null,2,null,null,null,1,79.349999999999994,8]
["Grade 10 General","Al Shomookh","Biology",11,null,11,null,5,null,7,null,5,78.040000000000006,39]
["Grade 10 General","Qatr Al Nada","Biology",6,null,24,null,15,null,5,null,6,77.33,56]
["Grade 10 General","Al Nokhbah","Biology",3,null,7,null,7,null,5,null,1,77.3,23]
["Grade 10 General","Dalma","Biology",4,null,2,null,2,null,4,null,3,75.95,15]
["Grade 10 General","Al Seddique","Biology",null,null,2,null,2,null,1,null,1,73.150000000000006,6]
["Grade 10 General","Al Abbas Bin Abdul Muttalib","Biology",null,null,2,null,3,null,4,null,null,72,9]
["Grade 10 General","Al Mottahida","Biology",4,null,20,null,13,null,9,null,9,71.989999999999995,55]
["Grade 10 General","Khanoor","Biology",null,null,1,null,1,null,null,null,1,71.33,3]
["Grade 10 General","Al Huiteen","Biology",1,null,2,null,null,null,null,null,1,69.53,4]
["Grade 10 General","Al Farooq","Biology",1,null,1,null,1,null,2,null,3,68.010000000000005,8]
["Grade 10 General","Al Falah School","Biology",1,null,1,null,8,null,8,null,8,64.680000000000007,26]
["Grade 10 General","Al Ebtekar","Biology",1,null,4,null,3,null,3,null,8,64.17,19]
["Grade 10 General","Al Hosn Scientific","Biology",1,null,2,null,3,null,null,null,5,62.15,11]
["Grade 10 Applied","Al Shomookh","Arabic Language",1,null,3,null,9,null,2,null,null,77.819999999999993,15]
["Grade 10 Applied","Al Ebtekar","Arabic Language",3,null,2,null,6,null,2,null,1,77.78,14]
["Grade 10 Applied","Bayah","Arabic Language",null,null,5,null,8,null,3,null,1,75.83,17]
["Grade 10 Applied","AL Shabhana","Arabic Language",null,null,2,null,11,null,2,null,3,71.739999999999995,18]
["Grade 10 Applied","Qatr Al Nada","Arabic Language",null,null,2,null,5,null,4,null,1,71.64,12]
["Grade 10 Applied","Al Falah School","Arabic Language",1,null,4,null,4,null,5,null,3,71.47,17]
["Grade 10 Advanced","Bedaa Al Mutawa","Arabic Language",3,null,null,null,null,null,null,null,null,98.06,3]
["Grade 10 Advanced","Al Mottahida","Arabic Language",24,null,null,5,null,1,null,null,null,92.79,30]
["Grade 10 Advanced","Al Huiteen","Arabic Language",8,null,1,1,null,null,null,null,null,92.67,10]
["Grade 10 Advanced","Khanoor","Arabic Language",10,null,1,2,null,null,null,null,null,91.87,13]
["Grade 10 Advanced","AL Shabhana","Arabic Language",12,null,1,5,null,null,null,null,null,91.59,18]
["Grade 10 Advanced","Al Nokhbah","Arabic Language",11,null,null,5,null,2,null,null,null,88.83,18]
["Grade 10 Advanced","Bayah","Arabic Language",9,null,3,3,null,null,null,null,null,88.73,15]
["Grade 10 Advanced","Dalma","Arabic Language",4,null,null,5,null,null,null,null,null,88.22,9]
["Grade 10 Advanced","Al Hosn Scientific","Arabic Language",4,null,null,6,null,null,null,null,null,87.98,10]
["Grade 10 Advanced","Al Ebtekar","Arabic Language",7,null,2,4,null,1,null,null,null,87.04,14]
["Grade 10 Advanced","Qatr Al Nada","Arabic Language",12,null,5,15,null,1,null,null,null,86.77,33]
["Grade 10 Advanced","Amra Bint Abdel Rahman","Arabic Language",7,null,6,8,null,null,null,null,null,85.42,21]
["Grade 10 Advanced","Al Seddique","Arabic Language",8,null,2,4,null,null,null,null,1,85.09,15]
["Grade 10 Advanced","Al Falah School","Arabic Language",17,null,6,21,null,3,null,null,2,84.59,49]
["Grade 10 Advanced","Al Shomookh","Arabic Language",6,null,6,15,null,3,null,null,null,84.04,30]
["Grade 10 Advanced","Al Farooq","Arabic Language",3,null,2,5,null,1,null,null,1,81.78,12]
["Grade 10 Advanced","Al Abbas Bin Abdul Muttalib","Arabic Language",4,null,4,4,null,2,null,null,null,81.02,14]
["Grade 1","Bedaa Al Mutawa","Arabic Language",21,null,1,null,null,null,null,null,null,96.82,33]
["Grade 1","Dalma","Arabic Language",21,null,1,null,null,null,null,null,null,96.81,100]
["Grade 1","Khanoor","Arabic Language",21,null,1,null,null,null,null,null,null,96.8,130]
["Grade 1","Al Huiteen","Arabic Language",26,null,5,null,2,null,null,null,null,91.81,13]
["Grade 1","Zayed Al Khair","Arabic Language",26,null,5,null,2,null,null,null,null,91.81,135]
["Grade 1","Al Nahrawan","Arabic Language",8,null,1,null,4,null,null,null,null,85.74,99]
["Grade 1","Al Sela","Arabic Language",71,null,27,null,20,null,9,7,1,85.63,22]
["Grade 1","Bayaat Al Redhwan","Arabic Language",26,null,42,null,15,null,10,4,2,80.290000000000006,46]
["Grade 1","Al Khamael","Arabic Language",41,null,17,null,21,null,12,7,2,80.150000000000006,35]
["Grade 1","Al Marfaa","Arabic Language",38,null,41,null,36,null,11,4,null,80.06,64]

{"sheet":"Higher","index":1,"n_rows":62,"n_cols":32,"rows_kept":62,"cut":false,"hidden":false,"merged":[[3,22,4,22],[5,1,5,16],[0,15,0,16],[0,21,1,21],[1,3,2,14],[1,15,1,16],[2,15,2,16]]}
[null,null,null,null,null,null,null,null,null,null,null,null,null,null,null,"وزارة التربية التعليم",null,null,null,null,null,"English","Language",null,null,null,null,null,null,2]
[null,null,null,{"$f":"IF(V8=\"\",\"\",V8&\" - \"&V7)","v":"Grade 1 - Arabic Language"},null,null,null,null,null,null,null,null,null,null,null,"Council 5",null,null,null,null,null,null,"اللغة",null,1,"التربية الإسلامية","Islamic Education",{"$f":"IF(AD2>=17,\"3\",IF(AD2>=9,\"2\",IF(AD2>=1,\"1\",\"\")))","v":"1"},null,2]
[null,null,null,null,null,null,null,null,null,null,null,null,null,null,null,"Sub-Cluster  5-6-1",null,null,null,null,null,null,null,null,2,"اللغة العربية","Arabic Language",{"$f":"IF(AD3<=8,\"ABCDEF\",IF(OR(AD3=9,AD3=11,AD3=13,AD3=15),\"ABCDF\",IF(OR(AD3=10,AD3=12,AD3=14,AD3=16),\"ABBCCF\",\"\")))","v":"ABCDEF"},{"$f":"IF(AND(AD3=9,AD2=6),9,\"\")","v":""},1]
[null,null,null,null,null,null,null,null,null,null,null,null,null,null,null,null,null,null,null,null,null,null,{"$f":"AD3","v":1},null,3,"اللغة الإنجليزية","English Language"]
[null,null,null,null,null,null,null,null,null,"School with heighest Average",null,null,null,null,null,null,null,null,null,null,{"$f":"AD2","v":2},null,null,null,4,"الدراسات الاجتماعية","Social Studies"]
[null,"First Trimester of the academic year 2020/2021",null,null,null,null,null,null,null,null,null,null,null,null,null,null,null,null,null,null,null,{"$f":"AB3","v":"ABCDEF"},null,null,5,"الرياضيات","Mathematics"]
[null,null,"Subject","A+","A","B+","B","C+","C","D","E","F","Average",{"$f":"IF(AD3>=9,\">=60%\",\">=50%\")","v":">=50%"},">=70%",{"$f":"IF(V1=\"English\",\"Judgement\",\"التقييم\")","v":"Judgement"},{"$f":"IF(V1=\"English\",\"#student\",\"عدد الطلاب\")","v":"#student"},null,null,null,null,{"$f":"IFERROR(VLOOKUP(AD2,MySubAlAbbas,3,0),\"\")","v":"Arabic Language"},null,null,{"$f":"IF(Z7=\"\",\"\",MAX($Y$2:Y6)+1)","v":6},{"$f":"IF(AND(AD3>=10,AD3<=16),\"الفيزياء\",IF(AD3=9,\"العلوم المتكاملة\",IF(AD3<9,\"العلوم\",\"\")))","v":"العلوم"},{"$f":"IF(AND(AD3>=10,AD3<=16),\"Physics\",IF(AD3=9,\"Integrated Science\",IF(AD3<9,\"Science\",\"\")))","v":"Science"}]
[1,{"$f":"IF($AB$2=1,\"Block 1\",IF($AB$2=2,\"Block 2\",IF($AB$2=3,\"Block 3\",\"\")))","v":""},"Bedaa Al Mutawa",null,null,null,null,null,null,null,null,null,null,null,null,{"$f":"IF(SUM(N8:O8)=0,\"\",IF(AND(N8=\"\",O8=\"\"),\"\",IF(AND(N8>=75,O8>=75),VLOOKUP(5,JudgmentClu,2,0),IF(AND(N8>=75,O8>=61),VLOOKUP(4,JudgmentClu,2,0),IF(AND(N8>=75,O8>=50),VLOOKUP(3,JudgmentClu,2,0),IF(AND(N8>=75,O8<50),VLOOKUP(2,JudgmentClu,2,0),IF(N8<75,VLOOKUP(1,JudgmentClu,2,0),\"\")))))))","v":""},{"$f":"IF(SUMPRODUCT(--(Data!$B$2:$B$15000&Data!$A$2:$A$15000&Data!$C$2:$C$15000=V11&Higher!$V$8&Higher!$V$7),INDEX(Data!$D$2:$N$15000,,MATCH(Higher!Q$7,Data!$D$1:$N$1,0)))=0,\"\",SUMPRODUCT(--(Data!$B$2:$B$15000&Data!$A$2:$A$15000&Data!$C$2:$C$15000=V11&Higher!$V$8&Higher!$V$7),INDEX(Data!$D$2:$N$15000,,MATCH(Higher!Q$7,Data!$D$1:$N$1,0))))","v":33},null,null,null,null,{"$f":"IFERROR(VLOOKUP(AD3,AB31:AD46,3,0),\"\")","v":"Grade 1"},"الصف",null,{"$f":"IF(Z8=\"\",\"\",MAX($Y$2:Y7)+1)","v":""},{"$f":"IF(AD3<=9,\"\",\"الكيمياء\")","v":""},{"$f":"IF(AD3<=9,\"\",\"Chemistry\")","v":""}]
[2,{"$f":"IF($AB$2=1,\"Block 1\",IF($AB$2=2,\"Block 2\",IF($AB$2=3,\"Block 3\",\"\")))","v":""},"Dalma",null,null,null,null,null,null,null,null,null,null,null,null,{"$f":"IF(SUM(N9:O9)=0,\"\",IF(AND(N9=\"\",O9=\"\"),\"\",IF(AND(N9>=75,O9>=75),VLOOKUP(5,JudgmentClu,2,0),IF(AND(N9>=75,O9>=61),VLOOKUP(4,JudgmentClu,2,0),IF(AND(N9>=75,O9>=50),VLOOKUP(3,JudgmentClu,2,0),IF(AND(N9>=75,O9<50),VLOOKUP(2,JudgmentClu,2,0),IF(N9<75,VLOOKUP(1,JudgmentClu,2,0),\"\")))))))","v":""},{"$f":"IF(SUMPRODUCT(--(Data!$B$2:$B$15000&Data!$A$2:$A$15000&Data!$C$2:$C$15000=V12&Higher!$V$8&Higher!$V$7),INDEX(Data!$D$2:$N$15000,,MATCH(Higher!Q$7,Data!$D$1:$N$1,0)))=0,\"\",SUMPRODUCT(--(Data!$B$2:$B$15000&Data!$A$2:$A$15000&Data!$C$2:$C$15000=V12&Higher!$V$8&Higher!$V$7),INDEX(Data!$D$2:$N$15000,,MATCH(Higher!Q$7,Data!$D$1:$N$1,0))))","v":100},{"$f":"IFERROR(IF(SUM(D9:L9)=0,\"\",1),\"\")","v":""},null,null,null,"Grade 1",null,null,{"$f":"IF(Z9=\"\",\"\",MAX($Y$2:Y8)+1)","v":""},{"$f":"IF(AD3<=9,\"\",\"الأحياء\")","v":""},{"$f":"IF(AD3<=9,\"\",\"Biology\")","v":""}]
[3,{"$f":"IF($AB$2=1,\"Block 1\",IF($AB$2=2,\"Block 2\",IF($AB$2=3,\"Block 3\",\"\")))","v":""},"Khanoor",null,null,null,null,null,null,null,null,null,null,null,null,{"$f":"IF(SUM(N10:O10)=0,\"\",IF(AND(N10=\"\",O10=\"\"),\"\",IF(AND(N10>=75,O10>=75),VLOOKUP(5,JudgmentClu,2,0),IF(AND(N10>=75,O10>=61),VLOOKUP(4,JudgmentClu,2,0),IF(AND(N10>=75,O10>=50),VLOOKUP(3,JudgmentClu,2,0),IF(AND(N10>=75,O10<50),VLOOKUP(2,JudgmentClu,2,0),IF(N10<75,VLOOKUP(1,JudgmentClu,2,0),\"\")))))))","v":""},{"$f":"IF(SUMPRODUCT(--(Data!$B$2:$B$15000&Data!$A$2:$A$15000&Data!$C$2:$C$15000=V13&Higher!$V$8&Higher!$V$7),INDEX(Data!$D$2:$N$15000,,MATCH(Higher!Q$7,Data!$D$1:$N$1,0)))=0,\"\",SUMPRODUCT(--(Data!$B$2:$B$15000&Data!$A$2:$A$15000&Data!$C$2:$C$15000=V13&Higher!$V$8&Higher!$V$7),INDEX(Data!$D$2:$N$15000,,MATCH(Higher!Q$7,Data!$D$1:$N$1,0))))","v":130},"",null,null,null,null,null,null,{"$f":"IF(Z10=\"\",\"\",MAX($Y$2:Y9)+1)","v":7},{"$f":"IF(AD3>16,\"\",IF(AD3>12,\"التصميم الإبداعي والابتكار\",IF(AD3>=9,\"علوم الكمبيوتر\",IF(AD3>0,\"التصميم والتكنولوجيا\",\"\"))))","v":"التصميم والتكنولوجيا"},{"$f":"IF(AD3>16,\"\",IF(AD3>12,\"Creative Design and Innovation\",IF(AD3>=9,\"Computer Science\",IF(AD3>0,\"Design and Technology\",\"\"))))","v":"Design and Technology"}]
[4,null,null,null,null,null,null,null,null,null,null,null,null,null,null,null,null,"",null,null,null,{"$f":"IF(C8=\"\",\"\",C8)","v":"Bedaa Al Mutawa"}]
[5,null,null,null,null,null,null,null,null,null,null,null,null,null,null,null,null,"",null,null,null,{"$f":"IF(C9=\"\",\"\",C9)","v":"Dalma"}]
[6,null,null,null,null,null,null,null,null,null,null,null,null,null,null,null,null,"",null,null,null,"Khanoor"]
[7,null,{"$f":"IFERROR(VLOOKUP(A14,MySubAlAbbas,3,0),\"\")","v":"Design and Technology"},{"$error":"#DIV/0!"},{"$error":"#DIV/0!"},{"$error":"#DIV/0!"},{"$error":"#DIV/0!"},{"$error":"#DIV/0!"},{"$error":"#DIV/0!"},{"$error":"#DIV/0!"},{"$error":"#DIV/0!"},{"$error":"#DIV/0!"},null,null,null,null,null,"",{"$f":"IFERROR(IF(SUM(E14:L14)=0,\"\",7),\"\")","v":""}]
[8,null,{"$f":"IFERROR(VLOOKUP(A15,MySubAlAbbas,3,0),\"\")","v":""},{"$error":"#DIV/0!"},{"$error":"#DIV/0!"},{"$error":"#DIV/0!"},{"$error":"#DIV/0!"},{"$error":"#DIV/0!"},{"$error":"#DIV/0!"},{"$error":"#DIV/0!"},{"$error":"#DIV/0!"},{"$error":"#DIV/0!"},null,null,null,null,null,"",{"$f":"IFERROR(IF(SUM(E15:L15)=0,\"\",8),\"\")","v":""}]
[9,null,{"$f":"IFERROR(VLOOKUP(A16,MySubAlAbbas,3,0),\"\")","v":""},{"$error":"#DIV/0!"},{"$error":"#DIV/0!"},{"$error":"#DIV/0!"},{"$error":"#DIV/0!"},{"$error":"#DIV/0!"},{"$error":"#DIV/0!"},{"$error":"#DIV/0!"},{"$error":"#DIV/0!"},{"$error":"#DIV/0!"},null,null,null,null,null,"",{"$f":"IFERROR(IF(SUM(E16:L16)=0,\"\",9),\"\")","v":""}]
[]
[]
[null,null,null,null,null,null,null,null,null,null,null,{"$f":"V8","v":"Grade 1"}]
[]
[]
[]
[]
[]
[]
[]
[]
[]
[]
[]
[null,null,null,null,null,null,null,null,null,null,null,null,null,null,null,null,null,null,null,null,null,null,null,null,null,1,{"$f":"IF(V1=\"English\",\"WEAK\",\"ضعيف\")","v":"WEAK"},1,"الصف الأول","Grade 1"]
[null,null,null,null,null,null,null,null,null,null,null,null,null,null,null,null,null,null,null,null,null,null,null,null,null,2,{"$f":"IF(V1=\"English\",\"ACCEPTABLE\",\"مقــبول\")","v":"ACCEPTABLE"},2,"الصف الثاني","Grade 2"]
[null,null,null,null,null,null,null,null,null,null,null,null,null,null,null,null,null,null,null,null,null,null,null,null,null,3,{"$f":"IF(V1=\"English\",\"GOOD\",\"جــــيد\")","v":"GOOD"},3,"الصف الثالث","Grade 3"]
[null,null,null,null,null,null,null,null,null,null,null,null,null,null,null,null,null,null,null,null,null,null,null,null,null,4,{"$f":"IF(V1=\"English\",\"VERY GOOD\",\"جيد جداً\")","v":"VERY GOOD"},4,"الصف الرابع","Grade 4"]
[null,null,null,null,null,null,null,null,null,null,null,null,null,null,null,null,null,null,null,null,null,null,null,null,null,5,{"$f":"IF(V1=\"English\",\"OUTSTANDING\",\"ممتاز\")","v":"OUTSTANDING"},5,"الصف الخامس","Grade 5",null,1]
[null,null,null,null,null,null,null,null,null,null,null,null,null,null,null,null,null,null,null,null,null,null,null,null,null,null,null,6,"الصف السادس","Grade 6",null,2]
[null,null,null,null,null,null,null,null,null,null,null,null,null,null,null,null,null,null,null,null,null,null,null,null,null,null,null,7,"الصف السابع","Grade 7",null,3]
[null,null,null,null,null,null,null,null,null,null,null,null,null,null,null,null,null,null,null,null,null,null,null,null,1,1,"Al Khamael",8,"الصف الثامن","Grade 8",null,4]
[null,null,null,null,null,null,null,null,null,null,null,null,null,null,null,null,null,null,null,null,null,null,null,null,1,2,"Al Marfaa",9,"الصف التاسع عام","Grade 9 General",null,5]
[null,null,null,null,null,null,null,null,null,null,null,null,null,null,null,null,null,null,null,null,null,null,null,null,1,3,"Zayed Al Khair",10,"الصف التاسع متقدم","Grade 9 Advanced",null,6]
[null,null,null,null,null,null,null,null,null,null,null,null,null,null,null,null,null,null,null,null,null,null,null,null,1,4,"Al Dhafra",11,"الصف العاشر عام","Grade 10 General",null,7]
[null,null,null,null,null,null,null,null,null,null,null,null,null,null,null,null,null,null,null,null,null,null,null,null,1,5,"Al Nokhbah",12,"الصف العاشر متقدم","Grade 10 Advanced",null,8]
[null,null,null,null,null,null,null,null,null,null,null,null,null,null,null,null,null,null,null,null,null,null,null,null,1,6,"Al Shomookh",13,"الصف الحادي عشر عام","Grade 11 General",null,9]
[null,null,null,null,null,null,null,null,null,null,null,null,null,null,null,null,null,null,null,null,null,null,null,null,1,7,"Qatr Al Nada",14,"الصف الحادي عشر متقدم","Grade 11 Advanced",null,10]
[null,null,null,null,null,null,null,null,null,null,null,null,null,null,null,null,null,null,null,null,null,null,null,null,1,8,"Al Falah School",15,"الصف الثاني عشر عام","Grade 12 General",null,11]
[null,null,null,null,null,null,null,null,null,null,null,null,null,null,null,null,null,null,null,null,null,null,null,null,2,9,"Al Huiteen",16,"الصف الثاني عشر متقدم","Grade 12 Advanced",null,12]
[null,null,null,null,null,null,null,null,null,null,null,null,null,null,null,null,null,null,null,null,null,null,null,null,2,10,"Al Seddique"]
[null,null,null,null,null,null,null,null,null,null,null,null,null,null,null,null,null,null,null,null,null,null,null,null,2,11,"Bayaat Al Redhwan"]
[null,null,null,null,null,null,null,null,null,null,null,null,null,null,null,null,null,null,null,null,null,null,null,null,2,12,"Dalma"]
[null,null,null,null,null,null,null,null,null,null,null,null,null,null,null,null,null,null,null,null,null,null,null,null,2,13,"Al Hosn Scientific"]
[null,null,null,null,null,null,null,null,null,null,null,null,null,null,null,null,null,null,null,null,null,null,null,null,2,14,"Al Mottahida"]
[null,null,null,null,null,null,null,null,null,null,null,null,null,null,null,null,null,null,null,null,null,null,null,null,2,15,"Baynouna"]
[null,null,null,null,null,null,null,null,null,null,null,null,null,null,null,null,null,null,null,null,null,null,null,null,2,16,"Al Ebtekar"]
[null,null,null,null,null,null,null,null,null,null,null,null,null,null,null,null,null,null,null,null,null,null,null,null,3,17,"Al Farooq"]
[null,null,null,null,null,null,null,null,null,null,null,null,null,null,null,null,null,null,null,null,null,null,null,null,3,18,"Al Nahrawan"]
[null,null,null,null,null,null,null,null,null,null,null,null,null,null,null,null,null,null,null,null,null,null,null,null,3,19,"Al Sela"]
[null,null,null,null,null,null,null,null,null,null,null,null,null,null,null,null,null,null,null,null,null,null,null,null,3,20,"Bedaa Al Mutawa"]
[null,null,null,null,null,null,null,null,null,null,null,null,null,null,null,null,null,null,null,null,null,null,null,null,3,21,"Khanoor"]
[null,null,null,null,null,null,null,null,null,null,null,null,null,null,null,null,null,null,null,null,null,null,null,null,3,22,"Al Abbas Bin Abdul Muttalib"]
[null,null,null,null,null,null,null,null,null,null,null,null,null,null,null,null,null,null,null,null,null,null,null,null,3,23,"AL Shabhana"]
[null,null,null,null,null,null,null,null,null,null,null,null,null,null,null,null,null,null,null,null,null,null,null,null,3,24,"Amra Bint Abdel Rahman"]
[null,null,null,null,null,null,null,null,null,null,null,null,null,null,null,null,null,null,null,null,null,null,null,null,3,25,"Bayah"]